{"text_format":"1","workbook":"xlsx","n_sheets":5,"sheets":["Istruzioni","Anagrafica","Tabella Punti","Riepilogo_Punteggio","Appoggio"],"not_rendered":{"charts":0,"images":2,"macros":1,"external_links":0,"defined_names":17,"comments":0,"pivot_tables":0},"unopened":[],"bounds":{"document_bytes":16777216,"sheet_cells":100000,"rows_first":2000,"rows_last":500,"rows_between":2000,"halvings":0,"cell_chars":16384,"cell_head_chars":4096},"cells_cut":0,"cells_raw":0,"read":"whole","date_system":"1900"}

{"sheet":"Istruzioni","index":0,"n_rows":4,"n_cols":2,"rows_kept":4,"cut":false,"hidden":false,"merged":[]}
[]
["Istruzioni"]
[]
["Questo file è stato creato dalla Segreteria Nazionale della Cisl Scuola, per offrire un supporto alle segreteria nella compilazione delle graduatorie interne d'istituto del personale docente.\nIl primo passaggio è quello della cancellazione di eventuali dati presenti utilizzando il pulsante Cancella Dati presente nel foglio Anagrafica. \nLo step successivo è quello relativo alla compilazione delle celle evidenizate in giallo nella scheda Anagrafica.\nSuccessivamente, compilare tutte le celle evidenziate in giallo nel foglio Tabella Punti \nPulsante Stampa\nIl pulsante Stampa presente nella schermata Anagrafica, genera in automatico un file PDF con il nominativo del docente in esame. Tale file si salverà in automatico nella stessa posizione dove è presente questo file Excel.","AVVISO BLOCCO MACRO\nIl File contiene MACRO sicure, se il sistema blocca l'esecuzione delle macro, eseguire le seguenti operazioni:\n1. Chiudere il file\n2. Dal desktop selezionare il file\n3. Con il tasto destro selezionare Proprietà\n4. Aggiungere il FLAG alla voce Annulla blocco"]

{"sheet":"Anagrafica","index":1,"n_rows":24,"n_cols":5,"rows_kept":24,"cut":false,"hidden":false,"merged":[[2,2,3,6],[21,2,22,2],[21,3,22,3],[6,3,6,5],[21,4,22,4],[21,5,22,5],[21,6,22,6]]}
[]
[]
[null,null,"Anagrafica Docente"]
[]
[]
[]
[null,null,"Nome e Cognome*"]
[]
[null,null,"Grado attuale di Titolarità*",null,{"$f":"IF(D9=\"\",\"<--- Selezionare un valore\",\"\")","v":"<--- Selezionare un valore"}]
[]
[null,null,"Classe di Concorso/Posto*",null,{"$f":"IF(D11=\"\",\"<--- Inserire un valore\",\"\")","v":"<--- Inserire un valore"}]
[]
[]
[null,null,"Ricongiungimento in base al CCNI*",null,{"$f":"IF(D14=\"\",\"<--- Selezionare un valore\",\"\")","v":"<--- Selezionare un valore"}]
[]
[null,null,"Figli inferiori ai 6 anni*",null,{"$f":"IF(D16=\"\",\"<--- Selezionare un valore\",\"\")","v":"<--- Selezionare un valore"}]
[]
[null,null,"Figli Superiori ai 6 anni e inferiore ai 18 anni*",null,{"$f":"IF(D18=\"\",\"<--- Selezionare un valore\",\"\")","v":"<--- Selezionare un valore"}]
[]
[null,null,"Assistenza figli disabili*",null,{"$f":"IF(D20=\"\",\"<--- Selezionare un valore\",\"\")","v":"<--- Selezionare un valore"}]
[]
[null,null,"Data ultimo trasferimento, valevole per punteggio Bonus (gg/mm/aa)",null,{"$f":"IF(D20=\"\",\"<--- Inserire la data dell'ultimo trasferimento\",\"\")","v":"<--- Inserire la data dell'ultimo trasferimento"}]
[]
[null,"* Campo obbligatorio"]

{"sheet":"Tabella Punti","index":2,"n_rows":60,"n_cols":5,"rows_kept":60,"cut":false,"hidden":false,"merged":[[59,2,59,4],[58,2,58,4],[6,6,7,10],[1,1,2,4],[9,3,11,3],[9,4,11,4],[16,3,18,3],[16,4,18,4],[26,3,30,3],[3,1,4,1],[26,5,30,5],[40,5,43,5],[44,1,44,4]]}
[]
[null,{"$f":"CONCATENATE(\"Situazione del Docente: \",Anagrafica!D7,\" - \", Anagrafica!D11)","v":"Situazione del Docente:  - "}]
[]
[null,"Tabella A) Tabella di valutazione dei titoli ai fini dei trasferimenti d'ufficio del personale docente e educativo"]
[]
[null,"A1 - ANZIANITA' DI SERVIZIO","Punti","Nr.","Punteggio"]
[null,"A) per ogni anno di servizio comunque prestato, successivamente alla decorrenza giuridica della nomina, nel ruolo di appartenenza",6,null,{"$f":"C7*D7","v":0}]
[null,"A1) per ogni anno di servizio effettivamente prestato dopo la nomina nel ruolo di appartenenza in scuole o istituti situati nelle piccole isole, in aggiunta al punteggio di cui al punto A) (ovvero per ogni anno di servizio su sostegno prestato dai docenti titolari su sostegno)",6,null,{"$f":"IF(D8>D7,\"Attenzione\",C8*D8)","v":0}]
[null,"B) per ogni anno di servizio preruolo, anche nella scuola dell'infanzia, prestato nel medesimo ruolo di titolarità, riconosciuto o riconoscibile ai fini della carriera "]
[null,"- a.s.2025/2026",4,null,{"$f":"D10*4","v":0}]
[null,"- a.s.2026/2027 (attualmente non utilizzabile)",5]
[null,"- a.s.2027/2028 (attualmente non utilizzabile)",6]
[]
[null,"Per i titolari della scuola primaria, per ogni anno di servizio sia di ruolo che di preruolo prestato\nnella scuola dell'infanzia riconosciuto o riconoscibile ai fini della carriera o viceversa ovvero\nper i titolari  della scuola secondaria di I grado per ogni anno di servizio sia di ruolo che di\npreruolo nella scuola secondaria di II grado riconosciuto o riconoscibile ai fini della carriera o viceversa",3,null,{"$f":"D14*C14","v":0}]
[null,"Per ogni anno di ruolo o di preruolo, riconosciuto o riconoscibile, prestato (per i casi \ndiversi da quelli sopra indicati) (3 punti per i primi 4 anni e poi 2/3 per ogni anno successivo)",3,null,{"$f":"IF(D15>4,(4*C15)+(D15-4)*2,D15*C15)","v":0}]
[null,"B1) per ogni anno di servizio preruolo, anche nella scuola dell'infanzia, prestato nel medesimo \nruolo di titolarità, riconosciuto o riconoscibile ai fini della carriera, effettivamente prestato in \nscuole o istituti situati nelle piccole isole, ovvero  prestato dai docenti titolari su sostegno\ncon il titolo di specializzazione in aggiunta al punteggio di cui al punto B)"]
[null,"- a.s.2025/2026",4,null,{"$f":"D17*4","v":0}]
[null,"- a.s.2026/2027 (attualmente non utilizzabile)",5]
[null,"- a.s.2027/2028 (attualmente non utilizzabile)",6]
[]
[null,"Per il servizio prestato in scuole o istituti situati nelle piccole isole dai titolari\ndella scuola primaria, per ogni anno di servizio sia di ruolo che di preruolo nella \nscuola del'infanzia riconosciuto o riconoscibile ai fini della carriera o viceversa\novvero\nper i titolari della scuola secondaria di I grado per ogni anno di servizio sia di ruolo \nche di preruolo nella scuola secondaria di II grado riconosciuto o riconoscibile ai fini \ndella carriera o viceversa,  ovvero  prestato dai docenti titolari su sostegno\ncon il titolo di specializzazione in aggiunta al punteggio di cui al punto B)",3,null,{"$f":"D21*C21","v":0}]
[null,"Per ogni anno di ruolo o di preruolo, riconosciuto o riconoscibile, prestato in scuole\n o istituti situati nelle piccole isole  ovvero  prestato dai docenti titolari su sostegno\ncon il titolo di specializzazione  (nei casi diversi da quelli sopra indicati) \n(3 punti per i primi 4 anni e poi 2/3 per ogni anno successivo) prestato,\n in aggiunta al punteggio di cui al punto B)",3,null,{"$f":"IF(D22>4,(4*C22)+(D22-4)*2,D22*C22)","v":0}]
[null,"B2) (valido solo per i docenti della scuola primaria) per ogni anno di servizio effettivamente \nprestato come \"specialista\" per l'insegnamento della lingua straniera dall'anno scolastico \n1992/93 fino all'anno scolastico 1997/98 (in aggiunta al punteggio di cui alle lettere B e B1) \nrispettivamente"]
[]
[null,"- se il servizio è prestato nell'ambito del plesso di titolarità",0.5,null,{"$f":"IF(Anagrafica!D9<>Appoggio!D4,0,D25*C25)","v":0}]
[null,"- se il servizio è prestato al di fuori del plesso di titolarità   ",1,null,{"$f":"IF(Anagrafica!D9<>Appoggio!D4,0,D26*C26)","v":0}]
[null,"C) per il servizio di ruolo prestato senza soluzione di continuità  nella scuola di attuale titolarità o di precedente incarico triennale da ambito ovvero nella scuola di servizio per gli ex titolari di Dotazione Organica di Sostegno (DOS) nella scuola  secondaria  di II grado e per i docenti di religione cattolica (in aggiunta a quello previsto  dalle lettere A), A1), B), B1), B2))",4,null,{"$f":"IF(D27>D7,\"ATTENZIONE\",IF(D27>3,3*C27,D27*C27))","v":0}]
[null,"Per i primi 3 anni, per ogni anno:",4]
[]
[null,"- entro il quinquennio, per ogni anno",5,null,{"$f":"IF(D27>D7,\"ATTENZIONE\",IF(D27=\"\",0,IF(D27>5,2*C30,IF(D27<=3,0,(D27-3)*C30))))","v":0}]
[null,"- oltre il quinquennio, per ogni anno",6,null,{"$f":"IF(D27>D7,\"ATTENZIONE\",IF(D27>5,(D27-5)*C31,0))","v":0}]
[null,"C0) per ogni anno di ruolo prestato nel comune di attuale titolarità in \naggiunta a quello previsto dalle lettere A), A1), B), B1), B2)",1,null,{"$f":"IF(D32>D7,\"ATTENZIONE\",D32*C32)","v":0}]
[null,"C1) per i docenti della scuola primaria:"]
[null,"- Per il servizio di ruolo effettivamente prestato per un solo triennio senza soluzione di \ncontinuità, a partire dall'anno 1992/93 fino all'anno scolastico 1997/98, come docente \n\"specialista\" per l'insegnamento della lingua straniera (in aggiunta a quello previsto \ndalle lettere A), A1), B), B2), C)",1.5,null,{"$f":"IF(Anagrafica!D9<>Appoggio!D4,0,IF(D34=\"SI\",C34,0))","v":0}]
[]
[null,"- Per il servizio di ruolo effettivamente prestato per un solo triennio senza soluzione di continuità,  a partire dall'anno 1992/93 fino all'anno scolastico 1997/98, come docente \"specializzato\" per l'insegnamento della lingua straniera (in aggiunta a quello previsto dalle \nlettere A), A1), B), B2), C)",3,null,{"$f":"IF(Anagrafica!D9<>Appoggio!D4,0,IF(D36=\"SI\",C36,0))","v":0}]
[null,"D) a coloro che, per un triennio, a decorrere dalle operazioni di mobilità per l'anno scolastico\n 2000/01 e fino all'a.s.2007/08, non abbiano presentato domanda di trasferimento provinciale \no passaggio provinciale o, pur avendo presentato domanda, l'abbiano revocata nei termini previsti, è riconosciuto, per il predetto triennio, una tantum, un punteggio aggiuntivo di 10 PUNTI",10,null,{"$f":"IF(Anagrafica!D22>=Appoggio!H3,\"Non ha diritto al punteggio\",IF(D37=\"SI\",C37,0))","v":0}]
[]
[]
[null,"A2 - ESIGENZE DI FAMIGLIA","Punti","Valore","Punteggio"]
[null,"A) per ricongiungimento al coniuge/parte dell'unione civile/convivente di fatto ovvero, nel caso di\n docenti senza coniuge o separati giudizialmente o consensualmente con atto omologato \ndal tribunale, per ricongiungimento ai genitori o ai figli",6,{"$f":"Anagrafica!D14","v":0},{"$f":"IF(D41=\"SI\",C41,0)","v":0}]
[null,"B) Per ogni figlo di età inferiore a sei anni",5,{"$f":"Anagrafica!D16","v":0},{"$f":"D42*C42","v":0}]
[null,"C) per ogni figlio di età superiore ai sei anni, ma che non abbia superato il diciottesimo anno\ndi età ovvero per ogni figlio maggiorenne che risulti totalmente o permanentemente inabile \na proficuo lavoro",4,{"$f":"Anagrafica!D18","v":0},{"$f":"D43*C43","v":0}]
[null,"D) per la cura e l'assistenza dei figli disabili fisici, psichici o sensoriali, tossicodipendenti, ovvero \ndel coniuge o del genitore totalmente e permanentemente inabili al lavoro che possono essere \nassistiti soltanto nel comune richiesto, esclusivamente alle condizioni di cui ai punti a, b e c nota sub 9",6,{"$f":"Anagrafica!D20","v":0},{"$f":"IF(D44=\"SI\",C44,0)","v":0}]
[]
[null,"A3 - TITOLI GENERALI","Punti",null,"Punteggio"]
[null,"A) per il superamento di un pubblico concorso ordinario per esami e titoli, per l'accesso al ruolo di appartenenza, al momento della presentazione della domanda, o a ruoli di livello pari o superiore a quello di appartenenza",12,null,{"$f":"IF(D47=\"SI\",C47,0)","v":0}]
[null,"B) Per ogni diploma di specializzazione conseguito in corsi post-laurea, previsti dagli statuti ovvero dal DPR 162/82, ovvero dalla Legge 341/90 (artt.4, 6, 8) ovvero dal Decreto 509/99 e successive modifiche e integrazioni attivati dalle Università statali o libere ovvero da Istituti universitari statali o pareggiati, ovvero in corsi attivati da amministrazioni e/o istituti pubblici purché i titoli siano riconosciuti equipollenti dai competenti organismi universitari, ivi compresi gli istituti di educazione fisica statali o pareggiati, nell'ambito delle scienze dell'educazione e/o nell'ambito delle discipline attualmente insegnate dal docente\n- per ogni diploma (è valutabile un solo diploma, per lo stesso o gli stessi anni accademici del corso)",5,null,{"$f":"IF(D48=\"\",0,D48*C48)","v":0}]
[null,"C) per ogni diploma univesitario (diploma accademico di primo livello, laurea di primo livello o breve o diploma di Istituto Superiore di Educazione Fisica (ISEF)) conseguito oltre al titolo di studio attualmente necessario per l'accesso al ruolo di appartenenza",3,null,{"$f":"IF(D49=\"\",0,D49*C49)","v":0}]
[null,"D) per ogni corso di perfezionamento di durata non inferiore ad un anno, previsto dagli statuti ovvero dal DPR 162/82, ovvero dalla Legge 341/90 (artt.4, 6 e 8) ovvero dal Decreto 509/99 e successive modifiche e integrazioni, nonché per ogni master di 1° o di 2° livello attivati dalle università statali o libere ovvero da istituti universitari statali o pareggiati nell'ambito delle scienze della educazione e/o nell'ambito delle discipline attualmente insegnate dal docente\n- per ogni corso (è valutabile un solo corso, per lo stesso o gli stessi anni accademici)",1,null,{"$f":"IF(D50=\"\",0,D50*C50)","v":0}]
[null,"E) per ogni diploma di laurea con corso di durata quadriennale (ivi compreso il diploma di laurea in \nscienze motorie), per ogni diploma di laurea magistrale (specialistica), per ogni diploma accademico di\nsecondo livello (ivi compreso il diploma rilasciato da accademie di belle arti o conservatori di musica,\nvecchio ordinamento, conseguito entro il 31,12,2017 - L. n.228/2012) conseguito oltre al titolo di studio\nattualmente necessario per l'acesso al ruolo di appartenenza",5,null,{"$f":"IF(D51=\"\",0,D51*C51)","v":0}]
[null,"F) per il conseguimento del titolo di \"dottorato di ricerca\"\n(si valuta un solo titolo)",5,null,{"$f":"IF(D52=\"SI\",C52,0)","v":0}]
[null,"G) per la sola scuola primaria, per la frequenza del corso di aggiornamento/formazione linguistica e glottodidattica compreso nei piani attuati dal Ministero, con la collaborazione degli Uffici scolastici territorialmente competenti, delle istituzioni scolastiche, degli istituti di Ricerca (ex IRRSAE-IRRE, CEDE, BDP oggi, rispettivamente, INVALSI, INDIRE) e dell'università",1,null,{"$f":"IF(D53=\"\",0,IF(D53=\"NO\",0,IF(AND(Anagrafica!D9=\"Primaria\",D53=\"SI\"),1,0)))","v":0}]
[null,"H) per ogni partecipazione agli esami di Stato conclusivi dei corsi di studio di istruzione secondaria superiore di cui alla Legge 10/12/97 n.425 e al DPR 23/07/1998 n.323, fino all'anno scolastico 2000/2001, in qualità di presidente di commissione o di componente esterno, compresa l'attività svolta dal docente di sostegno all'alunno disabile che sostiene l'esame",1,null,{"$f":"IF(D54=\"\",0,IF(D54>0,C54*D54,0))","v":0}]
[null,"I) ai docenti tutor e ai docenti dell'orientamento di cui alla Direttiva del Ministro dell'Istruzione  e del Merito n.11 del 21 aprile 2023 è attribuito un punteggio aggiuntivo per il servizio svolto in tale qualità ai sensi del Decreto del Ministro dell'istruzione e del merito n.63 del 5 aprile 2023\n- per almeno un triennio scolastico continuativo nella medesima istituzione scolastica",3,"NO",{"$f":"IF(D55=\"\",0,IF(D55=\"SI\",C55,0))","v":0}]
[null,"L) per il servizio di ruolo prestato a decorrere dall'a.s.2023/24 senza soluzione di continuità per tre anni scolastici nelle istituzioni scolastiche di attuale titolarità situate in aree a forte rischio di abbandono, individuate ai sensi del decreto del Ministro dell'istruzione e del merito n.176 del 30 agosto 2023, nel caso di mancata presentazione di domanda di mobilità territoriale o profes-sionale, di assegnazione provvisoria, di utilizzazione e mancata accettazione di supplenza per l'intero anno scolastico per altra tipologia o classe di concorso\n- per almeno un triennio scolastico continuativo",3,"NO",{"$f":"IF(D56=\"\",0,IF(D56=\"SI\",C56,0))","v":0}]
[null,"M) CLIL di corso di perfezionamento per l'insegnamento di una disciplina non linguistica in lingua straniera di cui al Decreto Direttoriale n.6 del 16 aprile 2012 rilasciato esclusivamente da strutture universitarie in possesso dei requisiti di cui all'art.3, comma 3 del Decreto Ministeriale del 30 settembre 11\nN.B.: il certificato viene rilasciato solo a chi\n- è in possesso di certificazione di livello C1 del QCER (art.4, comma 2)\n- ha frequentato il corso metodologico\n- ha sostenuto la prova finale",1,null,{"$f":"IF(D57=\"\",0,D57*C57)","v":0}]
[null,"N) CLIL per docenti NON in possesso di certificazione di livello C1, ma che avendo svolto la parte metodologica esclusivamente presso le strutture universitarie, sono in possesso di un ATTESTATO di frequenza al corso di perfezionamento. \nN.B.: in questo caso il docente ha una competenza linguistica B2 NON certificata, ma ha frequentato il corso e superato l'esame finale",0.5,null,{"$f":"IF(D58=\"\",0,D58*C58)","v":0}]
[null,"N.B.: i titoli relativi a B), C), D), E), F), G), I), L), M) e N) anche cumulabili tra di loro, sono valutati fino ad un massimo di punti 10",{"$f":"IF(SUM(E48:E53)+SUM(E55:E58)>=10,10+E47+E54,SUM(E48:E53)+SUM(E55:E58)+E47+E54)","v":0}]
[null,"TOTALE PUNTI",{"$f":"Riepilogo_Punteggio!AH10","v":0}]

{"sheet":"Riepilogo_Punteggio","index":3,"n_rows":12,"n_cols":34,"rows_kept":12,"cut":false,"hidden":false,"merged":[[1,2,3,32],[6,30,7,30],[6,31,7,31],[6,32,7,32],[9,21,9,32],[6,24,7,24],[6,25,7,25],[6,26,7,26],[6,27,7,27],[6,28,7,28],[6,29,7,29],[6,19,7,19],[6,20,7,20],[9,17,9,20],[6,21,7,21],[9,2,9,16],[6,2,7,2],[6,3,7,3],[6,13,7,13],[6,16,7,16],[5,2,5,16],[5,17,5,20],[5,21,5,32],[6,4,6,5],[6,6,6,7],[6,8,6,9],[6,10,6,12],[6,14,6,15],[6,18,7,18],[6,23,7,23],[6,17,7,17],[6,22,7,22]]}
[]
[null,null,{"$f":"CONCATENATE(Anagrafica!D7,\" - \",Anagrafica!D11)","v":" - "}]
[]
[]
[]
[null,null,"A1 - ANZIANITA' DI SERVIZIO",null,null,null,null,null,null,null,null,null,null,null,null,null,null,"A2 - ESIGENZE DI FAMIGLIA",null,null,null,"A3 - TITOLI GENERALI"]
[null,null,"A","A1","B",null,"B1",null,"B2",null,"C",null,null,"C0","C1",null,"D","A","B","C","D","A","B","C","D","E","F","G","H","I","L","M","N"]
[null,null,null,null,"b_01","b_02","b1_1","b1_2","b2_1","b2_2","c_a1","c_a2","c_a3",null,"c1_1","c1_2",null,null,null,null,null,null,{"$f":"'Tabella Punti'!$D7","v":0},{"$f":"'Tabella Punti'!$D7","v":0},{"$f":"'Tabella Punti'!$D7","v":0},{"$f":"'Tabella Punti'!$D7","v":0},{"$f":"'Tabella Punti'!$D7","v":0},{"$f":"'Tabella Punti'!$D7","v":0},{"$f":"'Tabella Punti'!$D7","v":0},{"$f":"'Tabella Punti'!$D7","v":0},{"$f":"'Tabella Punti'!$D7","v":0},{"$f":"'Tabella Punti'!$D7","v":0},{"$f":"'Tabella Punti'!$D7","v":0}]
[null,null,{"$f":"'Tabella Punti'!$E7","v":0},{"$f":"'Tabella Punti'!$E8","v":0},{"$f":"'Tabella Punti'!$E10","v":0},{"$f":"'Tabella Punti'!$E15","v":0},{"$f":"'Tabella Punti'!$E17","v":0},{"$f":"'Tabella Punti'!$E22","v":0},{"$f":"'Tabella Punti'!$E25","v":0},{"$f":"'Tabella Punti'!$E26","v":0},{"$f":"'Tabella Punti'!$E27","v":0},{"$f":"'Tabella Punti'!$E30","v":0},{"$f":"'Tabella Punti'!$E31","v":0},{"$f":"'Tabella Punti'!$E32","v":0},{"$f":"'Tabella Punti'!$E34","v":0},{"$f":"'Tabella Punti'!$E36","v":0},{"$f":"'Tabella Punti'!$E37","v":0},{"$f":"'Tabella Punti'!E41","v":0},{"$f":"'Tabella Punti'!E42","v":0},{"$f":"'Tabella Punti'!E43","v":0},{"$f":"'Tabella Punti'!E44","v":0},{"$f":"'Tabella Punti'!E$47","v":0},{"$f":"'Tabella Punti'!E$48","v":0},{"$f":"'Tabella Punti'!E49","v":0},{"$f":"'Tabella Punti'!E50","v":0},{"$f":"'Tabella Punti'!E51","v":0},{"$f":"'Tabella Punti'!E52","v":0},{"$f":"'Tabella Punti'!E53","v":0},{"$f":"'Tabella Punti'!E54","v":0},{"$f":"'Tabella Punti'!E55","v":0},{"$f":"'Tabella Punti'!E56","v":0},{"$f":"'Tabella Punti'!E57","v":0},{"$f":"'Tabella Punti'!E59","v":0}]
[null,"Totale",{"$f":"SUM(C9:Q9)","v":0},null,null,null,null,null,null,null,null,null,null,null,null,null,null,{"$f":"SUM(R9:U9)","v":0},null,null,null,{"$f":"'Tabella Punti'!C59","v":0},null,null,null,null,null,null,null,null,null,null,null,{"$f":"C10+R10+V10","v":0}]
[]
[null,null,null,null,null,null,null,null,null,null,null,null,null,null,null,null,null,null,null,null,null,null,"La somma dei punteggi evidenziati in arancione non può essser valutata oltre i 10 punti"]

{"sheet":"Appoggio","index":4,"n_rows":17,"n_cols":8,"rows_kept":17,"cut":false,"hidden":true,"merged":[]}
[]
[null,null,null,"Grado di Tit.","Selezione","Numerico","Numeri","Punteggio D"]
[null,null,null,"Infanzia","SI",0,0,"2005-09-01"]
[null,null,null,"Primaria","NO",1,1]
[null,null,null,"1° Grado",null,2,2]
[null,null,null,"2° Grado",null,3,3]
[null,null,null,null,null,4]
[null,null,null,null,null,5]
[null,null,null,null,null,6]
[null,null,null,null,null,7]
[null,null,null,null,null,8]
[null,null,null,null,null,9]
[null,null,null,null,null,10]
[null,null,null,null,null,11]
[null,null,null,null,null,12]
[null,null,null,null,null,13]
[null,null,null,null,null,14]